[Event "DVM U14 2021"]
[Site "Willingen"]
[Date "2022.08.16"]
[Round "7"]
[White "Vollbehr, Bjarne"]
[Black "Borgert, Alexander"]
[Result "1-0"]
[ECO "E11"]
[WhiteElo "1654"]
[BlackElo "1477"]
[Annotator "NA RC"]
[PlyCount "119"]
[EventDate "2022.08.12"]
[EventType "team-tourn"]
[EventRounds "7"]
[EventCountry "GER"]
[SourceTitle "playchess.com"]
[Source "ChessBase"]
[SourceQuality "1"]
[TimeControl "40/5400+30:1800+30"]

1. d4 {[%emt 0:00:03]} d5 {[%emt 0:00:05]} 2. c4 {[%emt 0:00:05]} e6 {[%emt 0:00:03]} 3. Nf3 {[%emt 0:00:11]} Nf6 {[%emt 0:00:06]} 4. g3 {[%emt 0:00:04]} Bb4+ {[%emt 0:00:05]} 5. Bd2 {[%emt 0:00:08]} Be7 {[%emt 0:00:06]} 6. Bg2 {[%emt 0:00:11]} b6 {[%emt 0:00:09]} 7. O-O {[%emt 0:01:07]} Bb7 {[%emt 0:00:06]} 8. Qc2 {[%emt 0:02:25]} Nbd7 {[%emt 0:00:09]} 9. cxd5 {[%emt 0:05:30]} Bxd5 {[%emt 0:01:16]} 10. Nc3 {[%emt 0:00:31]} Bb7 {[%emt 0:00:23]} 11. Bf4 {[%emt 0:02:57]} c6 {[%emt 0:03:28]} 12. Rfd1 {[%emt 0:01:10]} Nd5 {[%emt 0:06:09]} 13. e4 {[%emt 0:02:52]} Nxf4 {[%emt 0:01:14]} 14. gxf4 {[%emt 0:00:06]} Nf6 {[%emt 0:01:08]} 15. f5 {[%emt 0:04:16]} exf5 {[%emt 0:01:12]} 16. e5 {[%emt 0:01:37]} Nd5 {[%emt 0:01:22]} 17. Nxd5 {[%emt 0:00:58]} cxd5 {[%emt 0:00:07]} 18. Qxf5 {[%emt 0:00:09]} Qd7 {[%emt 0:00:16]} 19. Qf4 {[%emt 0:05:13]} O-O {[%emt 0:02:38]} 20. Kh1 {[%emt 0:03:28]} Kh8 {[%emt 0:01:52]} 21. Rg1 {[%emt 0:00:22]} Qe6 {[%emt 0:01:43]} 22. Bf1 {[%emt 0:03:25]} Bc8 {[%emt 0:03:42]} 23. Bd3 {[%emt 0:00:36]} Bd7 {[%emt 0:01:56]} 24. Ng5 {[%emt 0:04:15]} Bxg5 {[%emt 0:01:04]} 25. Rxg5 {[%emt 0:04:05]} g6 {[%emt 0:01:55]} 26. Rag1 {[%emt 0:04:34]} Rg8 {[%emt 0:02:40]} 27. R5g4 {[%emt 0:04:28]} Qe7 {[%emt 0:12:41]} 28. R4g3 {[%emt 0:05:01]} Raf8 {[%emt 0:00:45]} 29. Rf3 {[%emt 0:00:45]} g5 {[%emt 0:04:34]} 30. Qf6+ {[%emt 0:07:21]} Qxf6 {[%emt 0:00:13]} 31. Rxf6 {[%emt 0:00:04]} Be6 {[%emt 0:00:23]} 32. Rh6 {[%emt 0:00:22]} Rg7 {[%emt 0:00:21]} 33. Rc1 {[%emt 0:03:06]} f6 {[%emt 0:01:44]} 34. Rc6 {[%emt 0:01:44]} Bg8 {[%emt 0:01:08]} 35. Rhxf6 {[%emt 0:04:40]} Rxf6 {[%emt 0:00:47]} 36. Rxf6 {[%emt 0:00:16]} Rf7 {[%emt 0:00:21]} 37. Rxf7 {[%emt 0:02:25]} Bxf7 {[%emt 0:00:07]} 38. Bf5 {[%emt 0:01:26]} Kg7 {[%emt 0:00:32]} 39. Kg2 {[%emt 0:00:20]} h6 {[%emt 0:00:27]} 40. h4 {[%emt 0:00:14]} Bh5 {[%emt 0:00:48]} 41. Be6 {[%emt 0:30:44]} gxh4 {[%emt 0:30:43]} 42. Bxd5 {[%emt 0:00:14]} Bg4 {[%emt 0:00:12]} 43. Bf3 {[%emt 0:00:40]} h3+ {[%emt 0:00:15]} 44. Kg3 {[%emt 0:00:17]} Bf5 {[%emt 0:00:50]} 45. Bh5 {[%emt 0:00:22]} Be6 {[%emt 0:00:12]} 46. a3 {[%emt 0:00:26]} Kf8 {[%emt 0:00:28]} 47. Bg6 {[%emt 0:00:37]} Kg7 {[%emt 0:00:20]} 48. Be4 {[%emt 0:00:18]} h5 {[%emt 0:00:09]} 49. f4 {[%emt 0:01:19]} h4+ {[%emt 0:00:08]} 50. Kxh4 {[%emt 0:00:17]} h2 {[%emt 0:00:30]} 51. Kg3 {[%emt 0:00:08]} h1=N+ {[%emt 0:00:17]} 52. Bxh1 {[%emt 0:00:09]} Bf5 {[%emt 0:00:07]} 53. d5 {[%emt 0:00:22]} Kf7 {[%emt 0:00:08]} 54. Bf3 {[%emt 0:00:15]} Ke7 {[%emt 0:00:06]} 55. Kh4 {[%emt 0:00:09]} Bd7 {[%emt 0:00:08]} 56. Kg5 {[%emt 0:00:10]} Be8 {[%emt 0:00:08]} 57. d6+ {[%emt 0:00:18]} Ke6 {[%emt 0:00:05]} 58. Bg4+ {[%emt 0:00:18]} Kf7 {[%emt 0:00:08]} 59. Bh5+ {[%emt 0:00:14]} Kf8 {[%emt 0:00:06]} 60. Bxe8 {[%emt 0:00:07]} 1-0

[Event "DVM U14 2021"]
[Site "Willingen"]
[Date "2022.08.16"]
[Round "7"]
[White "Aravindan, Midhulan"]
[Black "Apel, Linus"]
[Result "1/2-1/2"]
[ECO "C44"]
[WhiteElo "1642"]
[BlackElo "1488"]
[Annotator "NA RC"]
[PlyCount "80"]
[EventDate "2022.08.12"]
[EventType "team-tourn"]
[EventRounds "7"]
[EventCountry "GER"]
[SourceTitle "playchess.com"]
[Source "ChessBase"]
[SourceQuality "1"]
[TimeControl "40/5400+30:1800+30"]

1. e4 {[%emt 0:00:06]} e5 {[%emt 0:00:00]} 2. Nf3 {[%emt 0:00:12]} Nc6 {[%emt 0:00:17]} 3. d4 {[%emt 0:00:09]} exd4 {[%emt 0:00:06]} 4. Bc4 {[%emt 0:01:07]} Nge7 {[%emt 0:11:33]} 5. Bg5 {[%emt 0:07:01]} d6 {[%emt 0:04:02]} 6. Nxd4 {[%emt 0:07:35]} h6 {[%emt 0:05:55]} 7. Nxc6 {[%emt 0:00:21]} bxc6 {[%emt 0:06:38]} 8. Qh5 {[%emt 0:00:57]} d5 {[%emt 0:01:41]} 9. Bb3 {[%emt 0:04:18]} g6 {[%emt 0:01:02]} 10. Qh4 {[%emt 0:00:09]} Bg7 {[%emt 0:01:00]} 11. Bf6 {[%emt 0:01:15]} g5 {[%emt 0:01:59]} 12. Bxg7 {[%emt 0:01:06]} gxh4 {[%emt 0:00:06]} 13. Bxh8 {[%emt 0:00:18]} Ng6 {[%emt 0:03:17]} 14. Bc3 {[%emt 0:00:39]} Qg5 {[%emt 0:01:54]} 15. Nd2 {[%emt 0:07:31]} Nf4 {[%emt 0:05:24]} 16. O-O-O {[%emt 0:10:05]} Be6 {[%emt 0:04:18]} 17. Kb1 {[%emt 0:02:48]} O-O-O {[%emt 0:03:50]} 18. g3 {[%emt 0:00:37]} hxg3 {[%emt 0:07:06]} 19. Nf3 {[%emt 0:01:28]} Qh5 {[%emt 0:05:01]} 20. hxg3 {[%emt 0:01:34]} Qxf3 {[%emt 0:00:15]} 21. gxf4 {[%emt 0:07:56]} Qxe4 {[%emt 0:10:00]} 22. Rxh6 {[%emt 0:00:32]} Qxf4 {[%emt 0:02:54]} 23. Rf6 {[%emt 0:02:39]} Qg5 {[%emt 0:03:57]} 24. f4 {[%emt 0:02:24]} Qh5 {[%emt 0:03:18]} 25. Rc1 {[%emt 0:17:17]} Kb7 {[%emt 0:02:44]} 26. Bd4 {[%emt 0:01:00]} Rg8 {[%emt 0:01:25]} 27. a3 {[%emt 0:04:44]} Qh4 {[%emt 0:01:14]} 28. Be5 {[%emt 0:00:59]} Qh3 {[%emt 0:03:47]} 29. Ba4 {[%emt 0:04:00]} Rg6 {[%emt 0:01:13]} 30. Rxg6 {[%emt 0:00:26]} fxg6 {[%emt 0:00:24]} 31. c3 {[%emt 0:00:38]} g5 {[%emt 0:01:20]} 32. Bc2 {[%emt 0:01:30]} Qe3 {[%emt 0:02:46]} 33. Bd4 {[%emt 0:00:13]} Qxf4 {[%emt 0:00:20]} 34. Re1 {[%emt 0:02:48]} Bh3 {[%emt 0:02:54]} 35. Re7 {[%emt 0:00:30]} Qd6 {[%emt 0:01:37]} 36. Rg7 {[%emt 0:01:40]} g4 {[%emt 0:00:53]} 37. Rg6 {[%emt 0:04:05]} Qf8 {[%emt 0:01:17]} 38. Ka2 {[%emt 0:03:31]} Qf7 {[%emt 0:00:20]} 39. Rg7 {[%emt 0:00:26]} Qe6 {[%emt 0:00:48]} 40. Rg6 {[%emt 0:00:59]} Qf7 {[%emt 3:37:03]} 1/2-1/2

[Event "DVM U14 2021"]
[Site "Willingen"]
[Date "2022.08.16"]
[Round "7"]
[White "Bezsonna, Polina"]
[Black "Nitsche, Nikolai"]
[Result "0-1"]
[ECO "B07"]
[WhiteElo "1631"]
[BlackElo "1764"]
[Annotator "NA RC"]
[PlyCount "90"]
[EventDate "2022.08.12"]
[EventType "team-tourn"]
[EventRounds "7"]
[EventCountry "GER"]
[SourceTitle "playchess.com"]
[Source "ChessBase"]
[SourceQuality "1"]
[TimeControl "40/5400+30:1800+30"]

1. e4 {[%emt 0:00:03]} g6 {[%emt 0:00:08]} 2. d4 {[%emt 0:00:28]} Bg7 {[%emt 0:00:07]} 3. Nf3 {[%emt 0:00:29]} d6 {[%emt 0:00:10]} 4. Bd3 {[%emt 0:00:34]} Nf6 {[%emt 0:00:07]} 5. O-O {[%emt 0:01:10]} O-O {[%emt 0:00:19]} 6. c3 {[%emt 0:00:54]} Nc6 {[%emt 0:03:47]} 7. Re1 {[%emt 0:04:02]} e5 {[%emt 0:00:10]} 8. d5 {[%emt 0:05:24]} Ne7 {[%emt 0:00:08]} 9. Bc2 {[%emt 0:01:38]} Nh5 {[%emt 0:05:22]} 10. h3 {[%emt 0:03:08]} f5 {[%emt 0:10:03]} 11. exf5 {[%emt 0:01:03]} Nxf5 {[%emt 0:01:15]} 12. Bxf5 {[%emt 0:11:18]} Bxf5 {[%emt 0:01:09]} 13. Bg5 {[%emt 0:10:02]} Qd7 {[%emt 0:05:43]} 14. Qe2 {[%emt 0:11:22]} h6 {[%emt 0:04:24]} 15. Be3 {[%emt 0:00:54]} Be4 {[%emt 0:10:09]} 16. Nbd2 {[%emt 0:03:45]} Bxd5 {[%emt 0:02:22]} 17. c4 {[%emt 0:07:28]} Bxf3 {[%emt 0:03:26]} 18. Nxf3 {[%emt 0:00:17]} Nf4 {[%emt 0:00:05]} 19. Bxf4 {[%emt 0:01:23]} Rxf4 {[%emt 0:00:10]} 20. Qd3 {[%emt 0:01:16]} Qf7 {[%emt 0:14:15]} 21. Re4 {[%emt 0:02:41]} Rf6 {[%emt 0:03:08]} 22. Rd1 {[%emt 0:06:36]} b6 {[%emt 0:03:45]} 23. b4 {[%emt 0:04:39]} a5 {[%emt 0:02:01]} 24. b5 {[%emt 0:02:52]} Rf8 {[%emt 0:00:46]} 25. Qd5 {[%emt 0:02:46]} Kh7 {[%emt 0:03:05]} 26. Qxf7 {[%emt 0:02:19]} R8xf7 {[%emt 0:00:10]} 27. Kf1 {[%emt 0:01:36]} g5 {[%emt 0:00:59]} 28. Rde1 {[%emt 0:02:09]} Kg6 {[%emt 0:02:30]} 29. R1e2 {[%emt 0:05:04]} h5 {[%emt 0:06:06]} 30. Ke1 {[%emt 0:01:32]} Bh6 {[%emt 0:01:25]} 31. Nd2 {[%emt 0:03:49]} Rf4 {[%emt 0:04:39]} 32. Nb1 {[%emt 0:02:29]} g4 {[%emt 0:02:00]} 33. hxg4 {[%emt 0:00:28]} hxg4 {[%emt 0:00:16]} 34. Nc3 {[%emt 0:00:25]} Kf5 {[%emt 0:00:57]} 35. Rxf4+ {[%emt 0:00:35]} Bxf4 {[%emt 0:00:10]} 36. Nd5 {[%emt 0:00:48]} Bg5 {[%emt 0:06:51]} 37. Kd1 {[%emt 0:00:24]} e4 {[%emt 0:02:55]} 38. Kc2 {[%emt 0:00:34]} Bh6 {[%emt 0:02:54]} 39. Re1 {[%emt 0:00:23]} Bg7 {[%emt 0:00:40]} 40. Rh1 {[%emt 0:00:55]} Ke5 {[%emt 0:00:20]} 41. Rf1 {[%emt 0:30:29]} g3 {[%emt 0:30:50]} 42. f3 {[%emt 0:00:31]} exf3 {[%emt 0:00:00]} 43. gxf3 {[%emt 0:00:00]} Kd4 {[%emt 0:00:00]} 44. Kd2 {[%emt 0:00:00]} Bh6+ {[%emt 0:00:00]} 45. Nf4 {[%emt 0:00:46]} Ke5 0-1

[Event "DVM U14 2021"]
[Site "Willingen"]
[Date "2022.08.16"]
[Round "7"]
[White "Pichl, Christoph"]
[Black "Spranger, Tobias"]
[Result "1/2-1/2"]
[ECO "D02"]
[WhiteElo "1617"]
[BlackElo "1522"]
[Annotator "NA RC"]
[PlyCount "152"]
[EventDate "2022.08.12"]
[EventType "team-tourn"]
[EventRounds "7"]
[EventCountry "GER"]
[SourceTitle "playchess.com"]
[Source "ChessBase"]
[SourceQuality "1"]
[TimeControl "40/5400+30:1800+30"]

1. d4 {[%emt 0:00:04]} d5 {[%emt 0:00:04]} 2. Bf4 {[%emt 0:00:05]} e6 {[%emt 0:00:05]} 3. e3 {[%emt 0:00:05]} c5 {[%emt 0:00:04]} 4. c3 {[%emt 0:00:04]} Nc6 {[%emt 0:00:04]} 5. Nd2 {[%emt 0:00:32]} Nf6 {[%emt 0:00:27]} 6. Ngf3 {[%emt 0:00:34]} Be7 {[%emt 0:00:24]} 7. Bd3 {[%emt 0:01:14]} O-O {[%emt 0:00:40]} 8. O-O {[%emt 0:00:15]} a5 {[%emt 0:08:20]} 9. h3 {[%emt 0:02:45]} c4 {[%emt 0:02:28]} 10. Bc2 {[%emt 0:00:05]} b5 {[%emt 0:00:26]} 11. e4 {[%emt 0:01:35]} dxe4 {[%emt 0:02:05]} 12. Nxe4 {[%emt 0:00:15]} Nd5 {[%emt 0:00:43]} 13. Bh2 {[%emt 0:01:07]} f5 {[%emt 0:01:43]} 14. Ned2 {[%emt 0:00:58]} Nf6 {[%emt 0:00:34]} 15. Re1 {[%emt 0:00:51]} Re8 {[%emt 0:01:53]} 16. Ne5 {[%emt 0:01:27]} Nxe5 {[%emt 0:02:10]} 17. Bxe5 {[%emt 0:07:26]} Bd6 {[%emt 0:01:50]} 18. Nf3 {[%emt 0:02:10]} Bxe5 {[%emt 0:02:15]} 19. Nxe5 {[%emt 0:00:41]} Bb7 {[%emt 0:00:25]} 20. Qd2 {[%emt 0:02:55]} Nd5 {[%emt 0:02:46]} 21. Bd1 {[%emt 0:01:16]} Rc8 {[%emt 0:06:50]} 22. Bh5 {[%emt 0:04:55]} Rf8 {[%emt 0:15:11]} 23. Re2 {[%emt 0:04:49]} Qh4 {[%emt 0:06:42]} 24. Bf3 {[%emt 0:02:33]} Ba8 {[%emt 0:04:07]} 25. Bxd5 {[%emt 0:03:20]} Bxd5 {[%emt 0:01:43]} 26. Nd7 {[%emt 0:00:26]} Rfe8 {[%emt 0:04:27]} 27. Nb6 {[%emt 0:01:12]} Rcd8 {[%emt 0:00:40]} 28. Nxd5 {[%emt 0:00:41]} Rxd5 {[%emt 0:00:32]} 29. Rae1 {[%emt 0:00:36]} Kf7 {[%emt 0:05:06]} 30. Re5 {[%emt 0:00:50]} Re7 {[%emt 0:07:54]} 31. Qe3 {[%emt 0:01:55]} Qf6 {[%emt 0:03:11]} 32. Qf3 {[%emt 0:02:55]} Rxe5 {[%emt 0:02:26]} 33. Rxe5 {[%emt 0:00:33]} Qg5 {[%emt 0:02:44]} 34. Rxb5 {[%emt 0:00:37]} Qc1+ {[%emt 0:00:43]} 35. Kh2 {[%emt 0:00:11]} g6 {[%emt 0:00:43]} 36. d5 {[%emt 0:05:31]} Qd2 {[%emt 0:01:52]} 37. Qe3 {[%emt 0:06:06]} Qxe3 {[%emt 0:01:19]} 38. fxe3 {[%emt 0:00:09]} exd5 {[%emt 0:00:04]} 39. Rxd5 {[%emt 0:00:27]} Rb7 {[%emt 0:01:12]} 40. Rxa5 {[%emt 0:02:44]} Rxb2 {[%emt 0:00:26]} 41. Ra4 {[%emt 0:30:06]} Rc2 {[%emt 0:30:14]} 42. Rxc4 {[%emt 0:00:05]} Rxa2 {[%emt 0:00:06]} 43. Rc7+ {[%emt 0:00:26]} Kf6 {[%emt 0:01:07]} 44. Rxh7 {[%emt 0:00:22]} Re2 {[%emt 0:00:11]} 45. Rc7 {[%emt 0:00:22]} Rxe3 {[%emt 0:00:07]} 46. c4 {[%emt 0:01:17]} Rc3 {[%emt 0:00:13]} 47. c5 {[%emt 0:00:33]} Ke6 {[%emt 0:00:47]} 48. Rc6+ {[%emt 0:00:37]} Kf7 {[%emt 0:00:12]} 49. Rc8 {[%emt 0:01:20]} Ke7 {[%emt 0:07:48]} 50. c6 {[%emt 0:00:47]} Kd6 {[%emt 0:00:36]} 51. Rg8 {[%emt 0:00:08]} Kxc6 {[%emt 0:00:19]} 52. Rxg6+ {[%emt 0:02:40]} Kd7 {[%emt 0:00:36]} 53. Rf6 {[%emt 0:02:43]} Rc5 {[%emt 0:00:12]} 54. Kg3 {[%emt 0:00:09]} Ke7 {[%emt 0:00:05]} 55. Ra6 {[%emt 0:00:10]} Kf7 {[%emt 0:01:06]} 56. Kf4 {[%emt 0:02:45]} Rc2 {[%emt 0:00:59]} 57. g3 {[%emt 0:00:29]} Rf2+ {[%emt 0:01:19]} 58. Kg5 {[%emt 0:00:21]} Rf3 {[%emt 0:01:30]} 59. Rf6+ {[%emt 0:03:53]} Ke7 {[%emt 0:01:26]} 60. Rxf5 {[%emt 0:00:14]} Rxg3+ {[%emt 0:00:08]} 61. Kh4 {[%emt 0:00:25]} Ra3 {[%emt 0:00:45]} 62. Kg4 {[%emt 0:00:30]} Ke6 {[%emt 0:01:50]} 63. Rf1 {[%emt 0:01:24]} Ra4+ {[%emt 0:00:45]} 64. Kg5 {[%emt 0:00:44]} Ra2 {[%emt 0:01:09]} 65. h4 {[%emt 0:00:22]} Ra5+ {[%emt 0:00:42]} 66. Kg6 {[%emt 0:00:08]} Ra4 {[%emt 0:00:34]} 67. h5 {[%emt 0:01:13]} Rg4+ {[%emt 0:00:26]} 68. Kh7 {[%emt 0:00:30]} Ke7 {[%emt 0:00:18]} 69. h6 {[%emt 0:00:36]} Rg3 {[%emt 0:00:10]} 70. Kh8 {[%emt 0:00:45]} Rg2 {[%emt 0:00:24]} 71. h7 {[%emt 0:00:25]} Rg3 {[%emt 0:00:10]} 72. Ra1 {[%emt 0:00:58]} Kf7 {[%emt 0:01:28]} 73. Ra8 {[%emt 0:00:40]} Rg4 {[%emt 0:00:18]} 74. Rg8 {[%emt 0:01:56]} Rh4 {[%emt 0:00:09]} 75. Rg3 {[%emt 0:00:59]} Rf4 {[%emt 0:00:20]} 76. Rg7+ {[%emt 0:01:11]} Kf8 {[%emt 0:00:15]} 1/2-1/2

[Event "DVM U14 2021"]
[Site "Willingen"]
[Date "2022.08.16"]
[Round "7"]
[White "Beyer, Lorenz"]
[Black "Bungarten, Jona"]
[Result "1/2-1/2"]
[ECO "D02"]
[WhiteElo "1587"]
[BlackElo "1834"]
[Annotator "NA RC"]
[PlyCount "58"]
[EventDate "2022.08.12"]
[EventType "team-tourn"]
[EventRounds "7"]
[EventCountry "GER"]
[SourceTitle "playchess.com"]
[Source "ChessBase"]
[SourceQuality "1"]
[TimeControl "40/5400+30:1800+30"]

{[%evp 12,38,1,32767,32767,32767,32767,32767,-7,-12,-12,-22,0,-6,0,-18,2,-22,-20,-43,-11,-16,-9,-20,5,-12,-4,0,-13]} 1. d4 {[%emt 0:00:06]} d5 {[%emt 0:00:00]} 2. Bf4 {[%emt 0:00:13]} Nf6 {[%emt 0:00:00]} 3. e3 {[%emt 0:00:08]} c5 {[%emt 0:00:00]} 4. c3 {[%emt 0:00:06]} Nc6 {[%emt 0:00:00]} 5. Nf3 {[%emt 0:00:10]} Qb6 {[%emt 0:01:08]} 6. Qc2 {[%emt 0:02:52]} Nh5 {[%emt 0:03:47]} 7. Bg3 {[%emt 0:01:01]} Nxg3 {[%emt 0:00:05]} 8. hxg3 {[%emt 0:00:29]} g6 {[%emt 0:04:36]} 9. Nbd2 {[%emt 0:00:50]} cxd4 {[%emt 0:00:35]} 10. exd4 {[%emt 0:00:34]} Bg7 {[%emt 0:00:58]} 11. Bd3 {[%emt 0:01:24]} Bg4 {[%emt 0:01:14]} 12. O-O {[%emt 0:05:49]} O-O {[%emt 0:01:35]} 13. Rfe1 {[%emt 0:04:19]} Rfe8 {[%emt 0:06:03]} 14. Nh2 {[%emt 0:00:44]} Bd7 {[%emt 0:04:45]} 15. Qb3 {[%emt 0:02:50]} Qxb3 {[%emt 0:01:15]} 16. Nxb3 {[%emt 0:00:31]} b6 {[%emt 0:05:43]} 17. Rad1 {[%emt 0:01:37]} Rad8 {[%emt 0:04:46]} 18. Nf3 {[%emt 0:05:22]} f6 {[%emt 0:01:04]} 19. Bb5 $11 {[%emt 0:05:39]} Kf7 {[%emt 0:06:13]} 20. Nc1 {[%emt 0:02:45]} Na5 {[%emt 0:01:14]} 21. Bxd7 {[%emt 0:00:02]} Rxd7 {[%emt 0:00:18]} 22. Nd3 {[%emt 0:01:20]} Nc6 {[%emt 0:02:25]} 23. Nf4 {[%emt 0:02:21]} e6 {[%emt 0:03:09]} 24. g4 {[%emt 0:01:31]} h6 {[%emt 0:04:05]} 25. Kf1 {[%emt 0:00:17]} Bf8 {[%emt 0:04:42]} 26. Re2 {[%emt 0:00:19]} Bd6 {[%emt 0:02:28]} 27. g3 {[%emt 0:06:04]} Bc7 {[%emt 0:00:47]} 28. Rde1 {[%emt 0:00:30]} Rde7 {[%emt 0:06:04]} 29. Rd1 {[%emt 0:01:28]} Rd7 1/2-1/2

[Event "DVM U14 2021"]
[Site "Willingen"]
[Date "2022.08.16"]
[Round "7"]
[White "Kiefhaber, Tobias"]
[Black "Fock, Madiha"]
[Result "1/2-1/2"]
[ECO "D35"]
[WhiteElo "1581"]
[BlackElo "1472"]
[Annotator "NA RC"]
[PlyCount "81"]
[EventDate "2022.08.12"]
[EventType "team-tourn"]
[EventRounds "7"]
[EventCountry "GER"]
[SourceTitle "playchess.com"]
[Source "ChessBase"]
[SourceQuality "1"]
[TimeControl "40/5400+30:1800+30"]

1. d4 {[%emt 0:00:02]} d5 {[%emt 0:00:05]} 2. Nf3 {[%emt 0:00:07]} Nf6 {[%emt 0:00:06]} 3. c4 {[%emt 0:00:15]} e6 {[%emt 0:00:06]} 4. Nc3 {[%emt 0:00:17]} Nbd7 {[%emt 0:00:54]} 5. Bg5 {[%emt 0:00:15]} c6 {[%emt 0:00:07]} 6. cxd5 {[%emt 0:00:32]} exd5 {[%emt 0:00:07]} 7. e3 {[%emt 0:00:40]} Be7 {[%emt 0:00:54]} 8. Bd3 {[%emt 0:01:46]} O-O {[%emt 0:01:22]} 9. O-O {[%emt 0:01:18]} Re8 {[%emt 0:02:25]} 10. Rc1 {[%emt 0:00:32]} Nf8 {[%emt 0:03:46]} 11. Qc2 {[%emt 0:02:45]} Ne4 {[%emt 0:04:43]} 12. Bxe7 {[%emt 0:04:35]} Qxe7 {[%emt 0:00:06]} 13. Ne5 {[%emt 0:01:31]} f6 {[%emt 0:07:35]} 14. Nxe4 {[%emt 0:02:06]} fxe5 {[%emt 0:00:46]} 15. Ng3 {[%emt 0:00:44]} e4 {[%emt 0:04:34]} 16. Be2 {[%emt 0:01:35]} Qg5 {[%emt 0:04:26]} 17. b4 {[%emt 0:02:10]} Re6 {[%emt 0:06:05]} 18. Qd2 {[%emt 0:02:01]} Rh6 {[%emt 0:01:29]} 19. f4 {[%emt 0:02:42]} Qh4 {[%emt 0:03:57]} 20. Kf2 {[%emt 0:01:16]} Rg6 {[%emt 0:04:17]} 21. Rh1 {[%emt 0:02:01]} Nd7 {[%emt 0:06:02]} 22. Rcg1 {[%emt 0:02:12]} Nf6 {[%emt 0:04:25]} 23. Ke1 {[%emt 0:01:11]} Bg4 {[%emt 0:03:16]} 24. Kd1 {[%emt 0:02:48]} Bxe2+ {[%emt 0:04:15]} 25. Qxe2 {[%emt 0:02:37]} Ng4 {[%emt 0:02:48]} 26. Kc2 {[%emt 0:01:46]} Qe7 {[%emt 0:03:42]} 27. f5 {[%emt 0:01:39]} Nxe3+ {[%emt 0:14:52]} 28. Qxe3 {[%emt 0:00:55]} Rh6 {[%emt 0:00:54]} 29. Rb1 {[%emt 0:01:29]} a5 {[%emt 0:01:47]} 30. b5 {[%emt 0:00:42]} Rc8 {[%emt 0:02:18]} 31. Kd2 {[%emt 0:01:12]} c5 {[%emt 0:01:38]} 32. dxc5 {[%emt 0:03:08]} Rxc5 {[%emt 0:00:09]} 33. Rhc1 {[%emt 0:02:53]} Rxc1 {[%emt 0:00:55]} 34. Rxc1 {[%emt 0:00:28]} Rxh2 {[%emt 0:00:52]} 35. Qe2 {[%emt 0:02:16]} Qg5+ {[%emt 0:00:31]} 36. Qe3 {[%emt 0:01:11]} Rxg2+ {[%emt 0:00:50]} 37. Ne2 {[%emt 0:00:06]} Qxf5 {[%emt 0:01:04]} 38. Rc7 {[%emt 0:01:48]} Qe5 {[%emt 0:02:01]} 39. Rxb7 {[%emt 0:01:22]} Qb2+ {[%emt 0:00:28]} 40. Kd1 {[%emt 0:00:33]} Qb1+ {[%emt 0:02:39]} 41. Nc1 {[%emt 0:31:46]} 1/2-1/2

[Event "DVM U14 2021"]
[Site "Willingen"]
[Date "2022.08.16"]
[Round "7"]
[White "Sökler, Jakob"]
[Black "Dickel, Karl-Joachim"]
[Result "1-0"]
[ECO "D02"]
[WhiteElo "1571"]
[BlackElo "1178"]
[Annotator "NA RC"]
[PlyCount "137"]
[EventDate "2022.08.12"]
[EventType "team-tourn"]
[EventRounds "7"]
[EventCountry "GER"]
[SourceTitle "playchess.com"]
[Source "ChessBase"]
[SourceQuality "1"]
[TimeControl "40/5400+30:1800+30"]

1. Nf3 {[%emt 0:00:03]} d5 {[%emt 0:00:09]} 2. e3 {[%emt 0:00:07]} Nc6 {[%emt 0:00:10]} 3. d4 {[%emt 0:00:20]} Bg4 {[%emt 0:00:11]} 4. Bb5 {[%emt 0:03:50]} a6 {[%emt 0:00:43]} 5. Bxc6+ {[%emt 0:00:08]} bxc6 {[%emt 0:00:10]} 6. O-O {[%emt 0:02:19]} e6 {[%emt 0:01:22]} 7. c4 {[%emt 0:01:27]} c5 {[%emt 0:00:57]} 8. Qa4+ {[%emt 0:01:46]} Qd7 {[%emt 0:00:41]} 9. Qxd7+ {[%emt 0:00:18]} Kxd7 {[%emt 0:00:06]} 10. Ne5+ {[%emt 0:00:08]} Ke8 {[%emt 0:00:06]} 11. Nxg4 {[%emt 0:00:09]} f6 {[%emt 0:00:28]} 12. h3 {[%emt 0:01:04]} h5 {[%emt 0:00:26]} 13. Nh2 {[%emt 0:00:06]} Rb8 {[%emt 0:00:12]} 14. b3 {[%emt 0:01:28]} cxd4 {[%emt 0:05:29]} 15. exd4 {[%emt 0:00:31]} c5 {[%emt 0:02:52]} 16. cxd5 {[%emt 0:00:42]} exd5 {[%emt 0:02:19]} 17. Re1+ {[%emt 0:02:39]} Kf7 {[%emt 0:01:12]} 18. Nf3 {[%emt 0:01:12]} g5 {[%emt 0:00:27]} 19. Nc3 {[%emt 0:01:30]} Rd8 {[%emt 0:03:21]} 20. Bb2 {[%emt 0:01:20]} g4 {[%emt 0:01:48]} 21. hxg4 {[%emt 0:00:43]} hxg4 {[%emt 0:00:08]} 22. Nh2 {[%emt 0:00:56]} f5 {[%emt 0:02:17]} 23. Na4 {[%emt 0:00:52]} Rc8 {[%emt 0:01:47]} 24. Nxc5 {[%emt 0:00:33]} Rc6 {[%emt 0:03:02]} 25. Bc1 {[%emt 0:06:45]} Bxc5 {[%emt 0:01:51]} 26. dxc5 {[%emt 0:00:10]} Rxc5 {[%emt 0:00:01]} 27. Bb2 {[%emt 0:01:16]} Nf6 {[%emt 0:01:41]} 28. Rac1 {[%emt 0:02:03]} Rhc8 {[%emt 0:01:16]} 29. Rxc5 {[%emt 0:01:12]} Rxc5 {[%emt 0:01:17]} 30. Rc1 {[%emt 0:00:11]} Rxc1+ {[%emt 0:00:32]} 31. Bxc1 {[%emt 0:00:06]} Ke6 {[%emt 0:00:25]} 32. Nf1 {[%emt 0:00:28]} Ne4 {[%emt 0:00:56]} 33. Bb2 {[%emt 0:01:41]} Kd6 {[%emt 0:00:50]} 34. Ne3 {[%emt 0:00:21]} Ke6 {[%emt 0:00:45]} 35. f3 {[%emt 0:00:57]} gxf3 {[%emt 0:00:30]} 36. gxf3 {[%emt 0:00:08]} Nd2 {[%emt 0:00:12]} 37. Kf2 {[%emt 0:00:35]} Nf1 {[%emt 0:02:59]} 38. Kxf1 {[%emt 0:01:04]} d4 {[%emt 0:00:27]} 39. Bxd4 {[%emt 0:00:13]} a5 {[%emt 0:00:05]} 40. Nc4 {[%emt 0:00:26]} a4 {[%emt 0:00:10]} 41. bxa4 {[%emt 0:30:10]} f4 {[%emt 0:30:37]} 42. a5 {[%emt 0:00:30]} Kd7 {[%emt 0:00:26]} 43. a6 {[%emt 0:00:20]} Ke6 {[%emt 0:00:00]} 44. a7 {[%emt 0:00:05]} Kd7 {[%emt 0:00:00]} 45. a8=B {[%emt 0:00:45]} Ke6 {[%emt 0:00:00]} 46. Be4 {[%emt 0:00:15]} Kd7 {[%emt 0:00:45]} 47. Bd5 {[%emt 0:00:47]} Ke7 {[%emt 0:00:00]} 48. Be5 {[%emt 0:00:41]} Kd7 {[%emt 0:00:00]} 49. Ke2 {[%emt 0:00:24]} Ke7 {[%emt 0:00:00]} 50. Kd3 {[%emt 0:00:15]} Kd7 {[%emt 0:00:00]} 51. Ke4 {[%emt 0:00:20]} Ke7 {[%emt 0:00:11]} 52. Kf5 {[%emt 0:00:09]} Kd7 {[%emt 0:00:04]} 53. Kf6 {[%emt 0:00:28]} Kd8 {[%emt 0:00:14]} 54. Ke6 {[%emt 0:00:24]} Ke8 {[%emt 0:00:14]} 55. a3 {[%emt 0:00:11]} Kd8 {[%emt 0:00:26]} 56. Bc6 {[%emt 0:00:43]} Kc8 {[%emt 0:00:02]} 57. Kd6 {[%emt 0:02:11]} Kd8 {[%emt 0:00:03]} 58. Bf6+ {[%emt 0:00:10]} Kc8 {[%emt 0:00:08]} 59. Na5 {[%emt 0:01:18]} Kb8 {[%emt 0:00:11]} 60. Bd4 {[%emt 0:00:42]} Kc8 {[%emt 0:00:09]} 61. Bb6 {[%emt 0:00:29]} Kb8 {[%emt 0:00:10]} 62. Bd5 {[%emt 0:03:13]} Kc8 {[%emt 0:00:03]} 63. Kc6 {[%emt 0:00:39]} Kb8 {[%emt 0:00:05]} 64. Nc4 {[%emt 0:00:50]} Kc8 {[%emt 0:00:09]} 65. Nd6+ {[%emt 0:00:12]} Kb8 {[%emt 0:00:04]} 66. Be4 {[%emt 0:00:21]} Ka8 {[%emt 0:00:05]} 67. Bd5 {[%emt 0:00:46]} Kb8 {[%emt 0:00:02]} 68. Bc7+ {[%emt 0:00:01]} Ka8 69. Kb6# 1-0